bitfinex-derivatives/quotes_BTCF0:USTF0_20250609
["timestamp","ask_amount","ask_price","bid_price","bid_amount"]
[1749497078974,0.12185842,108620.0,108610.0,0.27343173]
[1749497079169,0.12185842,108620.0,108610.0,0.27074391]
[1749497079978,0.12185842,108620.0,108610.0,0.28355379]
[1749497080376,0.12285842,108620.0,108610.0,0.28355379]
[1749497080778,0.12285842,108620.0,108610.0,0.27343594]
[1749497080981,0.12285842,108620.0,108610.0,0.28365711]
[1749497081283,0.12285842,108620.0,108610.0,0.27343575]
[1749497081478,0.12285842,108620.0,108610.0,0.26062179]
[1749497081784,0.12285842,108620.0,108610.0,0.31435454]
[1749497082079,1.14773842,108620.0,108610.0,0.30413453]
[1749497082269,1.14773842,108620.0,108610.0,0.31414079]
[1749497082580,1.14773842,108620.0,108610.0,0.29132179]
[1749497082784,1.14763842,108620.0,108610.0,0.30155234]
[1749497083283,1.14763842,108620.0,108610.0,0.30391896]
[1749497083479,1.14763842,108620.0,108610.0,0.29132179]
[1749497083684,1.14763842,108620.0,108610.0,0.30391896]
[1749497083983,1.14763842,108620.0,108610.0,0.30155248]
[1749497083984,1.33166002,108620.0,108610.0,0.30155248]
[1749497084185,1.56106368,108620.0,108610.0,0.18470806]
[1749497084381,1.92186368,108620.0,108610.0,0.01031293]
[1749497084578,1.92186368,108620.0,108610.0,0.19688276]
[1749497084883,1.92186368,108620.0,108610.0,0.19435232]
[1749497085080,1.92186368,108620.0,108610.0,0.0231249]
[1749497085386,2.01393568,108620.0,108610.0,0.0103137]
[1749497085687,2.00496479,108620.0,108610.0,0.09792345]
[1749497085980,2.00496479,108620.0,108610.0,0.1081808]
[1749497086176,2.00496479,108620.0,108610.0,0.08504642]
[1749497086377,2.00496479,108620.0,108610.0,0.09527896]
[1749497086580,2.00496479,108620.0,108610.0,0.01031338]
[1749497086770,2.25496479,108620.0,108610.0,0.05425199]
[1749497087083,2.25496479,108620.0,108610.0,0.08649665]
[1749497087276,2.25496479,108620.0,108610.0,0.09673016]
[1749497087474,2.25512479,108620.0,108610.0,0.067111]
[1749497087670,2.25512479,108620.0,108610.0,0.06711077]
[1749497087881,2.40802479,108620.0,108610.0,0.10960233]
[1749497088183,2.12751566,108620.0,108590.0,0.14499651]
[1749497088482,0.1840725,108590.0,108580.0,0.35998601]
[1749497088683,1.47870369,108590.0,108580.0,0.20779651]
[1749497088983,1.47870369,108590.0,108580.0,0.0946]
[1749497089181,1.47879356,108590.0,108580.0,0.0946]
[1749497089387,1.47879356,108590.0,108580.0,0.2786895]
[1749497089578,1.47879356,108590.0,108580.0,0.0946]
[1749497089886,1.47879356,108590.0,108580.0,0.2786895]
[1749497090484,1.47879356,108590.0,108580.0,0.0976]
[1749497090786,1.47879356,108590.0,108580.0,0.2816895]
[1749497091481,1.49770347,108590.0,108580.0,0.0641]
[1749497091686,1.4728116,108590.0,108580.0,0.0641]
[1749497091890,1.60001759,108590.0,108580.0,0.0322]
[1749497092083,0.1840895,108580.0,108570.0,0.03073829]
[1749497092279,0.87068069,108580.0,108570.0,0.1754348]
[1749497092480,0.87068069,108580.0,108570.0,0.24634469]
[1749497092677,0.87068069,108580.0,108570.0,0.06223829]
[1749497093082,0.97908469,108580.0,108570.0,0.00013829]
[1749497093376,0.28062783,108550.0,108540.0,0.00073562]
[1749497093576,1.89405149,108550.0,108540.0,0.06283562]
[1749497093784,0.1841573,108540.0,108530.0,0.01381]
[1749497094083,0.87808075,108540.0,108530.0,0.04531]
[1749497094290,0.74921309,108540.0,108530.0,0.04531]
[1749497094493,1.58694722,108540.0,108530.0,0.04531]
[1749497094682,0.97852722,108540.0,108530.0,0.07571]
[1749497094881,2.00396722,108540.0,108530.0,0.07571]
[1749497095082,2.00406722,108540.0,108530.0,0.07571]
[1749497095590,2.00386722,108540.0,108530.0,0.0619]
[1749497095789,2.00370722,108540.0,108530.0,0.0619]
[1749497096086,0.1841743,108530.0,108520.0,0.27205142]
[1749497096284,0.45528753,108530.0,108520.0,0.33375142]
[1749497096483,0.61139047,108540.0,108530.0,0.1841743]
[1749497096687,0.07901714,108540.0,108530.0,0.80467796]
[1749497096884,0.68681714,108540.0,108530.0,0.80467796]
[1749497097390,0.20669714,108540.0,108530.0,0.80467796]
[1749497097585,0.0004,108540.0,108530.0,0.80467796]
[1749497098094,0.00013829,108550.0,108540.0,0.1841573]
[1749497098294,0.60965829,108550.0,108540.0,0.5449573]
[1749497098496,0.60976025,108550.0,108540.0,0.5449573]
[1749497098796,0.60944025,108550.0,108540.0,0.77426096]
[1749497098987,0.79358055,108550.0,108540.0,0.77426096]
[1749497099288,0.60944025,108550.0,108540.0,0.77426096]
[1749497099695,0.68363143,108550.0,108540.0,0.77426096]
[1749497100291,0.07743143,108550.0,108540.0,0.81478107]
[1749497100488,0.61200025,108550.0,108540.0,0.81478107]
[1749497100686,0.61200025,108550.0,108540.0,0.98579295]
[1749497100995,0.61160025,108550.0,108540.0,1.01589295]
[1749497101292,0.57300025,108550.0,108540.0,1.01589295]
[1749497101492,0.57500025,108550.0,108540.0,1.01589295]
[1749497101788,0.57500025,108550.0,108540.0,1.02982553]
[1749497101988,0.57500025,108550.0,108540.0,1.02982554]
[1749497102291,0.57510893,108550.0,108540.0,1.01589295]
[1749497102887,0.57510893,108550.0,108540.0,1.02982548]
[1749497103085,0.75924933,108550.0,108540.0,0.80052183]
[1749497103389,0.75924933,108550.0,108540.0,0.77325556]
[1749497103390,1.08304052,108550.0,108540.0,0.77325556]
[1749497103690,0.85373686,108550.0,108540.0,0.7593223]
[1749497103883,0.57510893,108550.0,108540.0,0.7593223]
[1749497104089,0.75924933,108550.0,108540.0,0.77325658]
[1749497104283,0.07581628,108550.0,108540.0,1.00256024]
[1749497104491,0.68233628,108550.0,108540.0,0.87913767]
[1749497104685,0.07581628,108550.0,108540.0,0.89307084]
[1749497104884,0.68237628,108550.0,108540.0,0.89307049]
[1749497105092,0.07541628,108550.0,108540.0,0.87913767]
[1749497105378,0.68181628,108550.0,108540.0,1.03389173]
[1749497105581,0.68181628,108550.0,108540.0,1.01994955]
[1749497105582,0.68221628,108550.0,108540.0,1.01994955]
[1749497105789,0.86635638,108550.0,108540.0,0.64983401]
[1749497106091,0.86635638,108550.0,108540.0,0.76348862]
[1749497106893,0.86435638,108550.0,108540.0,0.76448862]
[1749497107785,1.45446004,108550.0,108540.0,0.04557671]
[1749497107992,1.52013547,108550.0,108520.0,0.1137929]
[1749497108188,0.86876519,108530.0,108520.0,0.08547677]
[1749497108393,1.46518218,108530.0,108520.0,0.15486385]
[1749497108692,1.52838218,108530.0,108520.0,0.15486385]
[1749497108878,1.52838218,108530.0,108520.0,0.06938508]
[1749497109081,1.52838218,108530.0,108520.0,0.05703477]
[1749497109280,1.52838218,108530.0,108520.0,0.01256421]
[1749497109490,1.52838218,108530.0,108520.0,0.01259278]
[1749497109491,0.69379852,108530.0,108520.0,0.01259278]
[1749497109692,1.52798218,108530.0,108520.0,0.01259715]
[1749497109990,1.52798218,108530.0,108520.0,0.00213829]
[1749497110185,0.92310218,108530.0,108520.0,0.00213829]
[1749497110385,1.29843852,108530.0,108520.0,0.00213829]
[1749497110595,1.52774218,108530.0,108520.0,0.05903477]
[1749497111298,0.184191,108520.0,108510.0,0.17433496]
[1749497111594,1.50670838,108520.0,108510.0,0.10495099]
[1749497111787,0.184208,108510.0,108500.0,0.0321]
[1749497111982,0.184208,108510.0,108490.0,0.12747461]
[1749497111983,0.184225,108500.0,108490.0,0.15827461]
[1749497112187,0.89253872,108500.0,108490.0,0.02636517]
[1749497112388,0.53173872,108500.0,108490.0,0.02641824]
[1749497112593,0.51377193,108500.0,108490.0,0.02662766]
[1749497112900,0.87457193,108500.0,108490.0,0.02670582]
[1749497113093,0.89918506,108500.0,108490.0,0.01882]
[1749497113292,0.89918506,108500.0,108490.0,0.03179934]
[1749497113498,0.89918506,108500.0,108490.0,0.01882]
[1749497113704,0.89918506,108500.0,108490.0,0.03189778]
[1749497113900,0.89918506,108500.0,108490.0,0.01882]
[1749497114396,0.89918506,108500.0,108490.0,0.03185057]
[1749497114589,0.89918506,108500.0,108490.0,0.01882]
[1749497114790,0.89918506,108500.0,108490.0,0.03192916]
[1749497114996,0.89918506,108500.0,108490.0,0.03171747]
[1749497115303,0.184259,108480.0,108470.0,0.0315]
[1749497115504,0.49259547,108480.0,108470.0,0.215776]
[1749497115690,0.79795576,108490.0,108470.0,0.74623746]
[1749497115998,0.787019,108480.0,108470.0,0.88090594]
[1749497116196,0.17360565,108480.0,108470.0,0.86651346]
[1749497116401,0.17360565,108480.0,108470.0,0.88090575]
[1749497116402,0.77600565,108480.0,108470.0,0.88090575]
[1749497116600,0.17360565,108480.0,108470.0,0.88090575]
[1749497116800,0.0004,108480.0,108470.0,0.88090593]
[1749497117103,0.3224473,108490.0,108480.0,0.184259]
[1749497117403,1.00799736,108490.0,108480.0,0.184259]
[1749497117594,1.00799736,108490.0,108480.0,0.19865055]
[1749497117791,1.00799736,108490.0,108480.0,0.184259]
[1749497118001,1.00799736,108490.0,108480.0,0.55945062]
[1749497118204,1.01738145,108490.0,108480.0,0.19865029]
[1749497118399,1.00840119,108490.0,108480.0,0.184259]
[1749497118598,1.0730559,108490.0,108480.0,0.545059]
[1749497119005,1.0780559,108490.0,108480.0,0.29791361]
[1749497119300,1.0780559,108490.0,108480.0,0.184259]
[1749497119504,1.0780559,108490.0,108480.0,0.19865081]
[1749497119897,1.0780559,108490.0,108480.0,0.55945081]
[1749497120299,1.0780559,108490.0,108480.0,0.19865081]
[1749497120498,1.0780559,108490.0,108480.0,0.19865037]
[1749497120698,1.0780559,108490.0,108480.0,0.19865065]
[1749497120899,1.0780559,108490.0,108480.0,0.19865074]
[1749497121108,1.0780559,108490.0,108480.0,0.184259]
[1749497121402,1.0780559,108490.0,108480.0,0.29791361]
[1749497121611,1.0780559,108490.0,108480.0,0.31230532]
[1749497121996,1.0780559,108490.0,108480.0,0.19865071]
[1749497122202,1.0780559,108490.0,108480.0,0.19865056]
[1749497122401,1.0780559,108490.0,108480.0,0.184259]
[1749497122604,1.0780559,108490.0,108480.0,0.29791361]
[1749497122808,1.0780559,108490.0,108480.0,0.31230488]
[1749497123007,1.0703759,108490.0,108480.0,0.29791361]
[1749497123307,1.0703759,108490.0,108480.0,0.31230473]
[1749497123609,1.0703759,108490.0,108480.0,0.29791361]
[1749497123802,1.0703759,108490.0,108480.0,0.31230475]
[1749497124007,1.0703759,108490.0,108480.0,0.3123048]
[1749497124202,1.08899963,108490.0,108480.0,0.3123048]
[1749497124504,1.04293553,108490.0,108480.0,0.19865025]
[1749497124706,0.48802547,108490.0,108480.0,0.545059]
[1749497125014,0.59904,108490.0,108480.0,0.6731044]
[1749497125207,0.783282,108490.0,108480.0,0.67310403]
[1749497125402,0.782882,108490.0,108480.0,0.67310399]
[1749497125707,0.782882,108490.0,108480.0,0.65871361]
[1749497125708,0.783282,108490.0,108480.0,0.65871361]
[1749497125908,1.01258566,108490.0,108480.0,0.31230381]
[1749497126106,1.04378566,108490.0,108480.0,0.31230488]
[1749497126308,1.12929572,108490.0,108480.0,0.31230501]
[1749497126501,1.12929572,108490.0,108480.0,0.29791361]
[1749497126709,0.89999206,108490.0,108480.0,0.31230511]
[1749497126911,0.89999206,108490.0,108480.0,0.31230473]
[1749497127106,0.89999206,108490.0,108480.0,0.90061554]
[1749497127107,0.85613509,108490.0,108480.0,0.90061554]
[1749497127399,0.84508333,108490.0,108480.0,0.90048721]
[1749497127609,0.84508333,108490.0,108480.0,0.90046916]
[1749497127805,0.84540333,108490.0,108480.0,0.90046843]
[1749497127997,0.85105509,108490.0,108480.0,0.9148583]
[1749497128201,0.85105509,108490.0,108480.0,0.78875264]
[1749497128408,0.84207574,108490.0,108480.0,0.7867972]
[1749497128708,0.84207574,108490.0,108480.0,0.78679751]
[1749497128907,0.84207574,108490.0,108480.0,0.55750164]
[1749497129105,0.84207574,108490.0,108480.0,0.67333912]
[1749497129301,0.84207574,108490.0,108480.0,0.545059]
[1749497129500,0.84207574,108490.0,108480.0,0.67142748]
[1749497129696,0.84207574,108490.0,108480.0,0.65897844]
[1749497129910,0.84207574,108490.0,108480.0,0.67145753]
[1749497130111,0.84207574,108490.0,108480.0,0.67336881]
[1749497130305,0.84207574,108490.0,108480.0,0.65897844]
[1749497130804,0.84207574,108490.0,108480.0,0.7048078]
[1749497131006,0.84207574,108490.0,108480.0,0.71724479]
[1749497131306,0.65783374,108490.0,108480.0,0.70480714]
[1749497131505,0.84207574,108490.0,108480.0,0.70480736]
[1749497131807,0.84207574,108490.0,108480.0,0.69047844]
[1749497132209,0.84207574,108490.0,108480.0,0.576559]
[1749497132813,0.84207574,108490.0,108480.0,0.5908813]
[1749497133013,0.84207574,108490.0,108480.0,0.607559]
[1749497133216,0.84207574,108490.0,108480.0,0.62188142]
[1749497133409,0.06499374,108490.0,108480.0,0.7626933]
[1749497133612,0.0004,108490.0,108480.0,0.83686266]
[1749497133812,0.59096,108490.0,108480.0,0.85117948]
[1749497134009,0.1481257,108500.0,108490.0,0.184242]
[1749497134208,0.6136057,108500.0,108490.0,1.05079085]
[1749497134417,0.6136057,108500.0,108490.0,1.05079074]
[1749497134612,0.1485257,108500.0,108490.0,1.03647641]
[1749497134919,0.6137657,108500.0,108490.0,1.05079117]
[1749497135208,0.0235257,108500.0,108490.0,1.05079123]
[1749497135417,0.0235257,108500.0,108490.0,1.03647641]
[1749497135622,0.4885257,108500.0,108490.0,0.83674566]
[1749497135922,0.4885257,108500.0,108490.0,1.05090605]
[1749497135923,0.4905257,108500.0,108490.0,1.05090605]
[1749497136127,0.4901257,108500.0,108490.0,1.05090577]
[1749497136424,0.4905257,108500.0,108490.0,1.03658924]
[1749497136615,0.4901257,108500.0,108490.0,1.05090572]
[1749497136815,0.0255257,108500.0,108490.0,1.05090572]
[1749497137017,0.12513829,108510.0,108500.0,0.1842248]
[1749497137220,0.57868982,108510.0,108500.0,0.88684494]
[1749497137525,0.11408982,108510.0,108500.0,0.97900099]
[1749497137718,0.11408982,108510.0,108500.0,0.97900076]
[1749497137719,0.11448982,108510.0,108500.0,0.97900076]
[1749497137921,0.11448982,108510.0,108500.0,0.9790005]
[1749497137922,0.11460235,108510.0,108500.0,0.9790005]
[1749497138223,0.11460235,108510.0,108500.0,0.96468845]
[1749497138419,0.00051253,108510.0,108500.0,0.97899933]
[1749497138621,0.125,108530.0,108500.0,1.37615667]
[1749497138823,0.01822591,108540.0,108530.0,0.1841739]
[1749497139024,0.14322591,108540.0,108530.0,0.91712965]
[1749497139325,0.58956,108540.0,108530.0,0.88486389]
[1749497139630,0.77379148,108540.0,108530.0,0.85557823]
[1749497139836,0.77379148,108540.0,108530.0,0.84129284]
[1749497140030,0.77379148,108540.0,108530.0,0.6412739]
[1749497140224,0.58963448,108540.0,108530.0,1.02751018]
[1749497140524,0.58879448,108540.0,108530.0,0.88475573]
[1749497140829,0.46419448,108540.0,108530.0,1.0705965]
[1749497141123,0.46419448,108540.0,108530.0,1.22695313]
[1749497141427,0.46419448,108540.0,108530.0,1.22695307]
[1749497141628,0.46419448,108540.0,108530.0,1.01312487]
[1749497141829,0.46419448,108540.0,108530.0,1.02693412]
[1749497142125,0.00047448,108540.0,108530.0,1.01312487]
[1749497142432,0.46323448,108540.0,108530.0,0.87057756]
[1749497142634,0.00047448,108540.0,108530.0,1.0705965]
[1749497144027,7.448e-05,108540.0,108530.0,1.0705965]
[1749497144223,0.00047448,108540.0,108530.0,1.0705965]
[1749497144418,0.44736277,108550.0,108530.0,0.8864226]
[1749497144623,0.44736277,108550.0,108540.0,0.9797393]
[1749497144825,1.230594,108560.0,108550.0,0.18414]
[1749497145025,1.230594,108560.0,108550.0,0.72196158]
[1749497145026,1.08595006,108560.0,108550.0,0.72196158]
[1749497145728,1.27007316,108560.0,108550.0,0.72196158]
[1749497146127,0.53808,108560.0,108550.0,0.95126524]
[1749497146326,1.00176,108560.0,108550.0,0.95126524]
[1749497146536,0.12041829,108570.0,108560.0,0.1841231]
[1749497146838,0.58213829,108570.0,108560.0,0.92102576]
[1749497147035,0.12041829,108570.0,108560.0,0.98642576]
[1749497147425,0.00053829,108570.0,108560.0,1.0150054]
[1749497147732,0.00013829,108570.0,108560.0,1.0150054]
[1749497147934,0.00053829,108570.0,108560.0,1.0150054]
[1749497148133,0.00013829,108570.0,108560.0,1.0150054]
[1749497148336,0.00053829,108570.0,108560.0,1.0150054]
[1749497149239,0.00053829,108570.0,108560.0,0.87272676]
[1749497150143,0.00053829,108570.0,108560.0,0.98614757]
[1749497150526,0.00013829,108570.0,108560.0,0.98614757]
[1749497150841,0.00053829,108570.0,108560.0,0.98614757]
[1749497151237,0.00053829,108570.0,108560.0,0.99020417]
[1749497151847,1.15327528,108590.0,108580.0,0.1840892]
[1749497152031,1.15327528,108590.0,108580.0,0.6866395]
[1749497152226,1.06123108,108590.0,108580.0,0.6866395]
[1749497152542,1.06123108,108590.0,108580.0,0.7167395]
[1749497153134,1.06423108,108590.0,108580.0,0.7167395]
[1749497153638,0.06438829,108590.0,108580.0,0.94604316]
[1749497153839,0.003,108590.0,108580.0,1.25014304]
[1749497154033,0.61108,108610.0,108600.0,0.1840553]
[1749497154225,0.88062836,108610.0,108600.0,0.60150484]
[1749497154435,1.47113202,108610.0,108600.0,0.05662589]
[1749497154636,1.50433202,108610.0,108600.0,0.28316028]
[1749497154941,1.53473202,108610.0,108600.0,0.04247909]
[1749497155141,0.1840553,108600.0,108590.0,0.32932077]
[1749497155330,0.33276536,108600.0,108590.0,0.32932077]
[1749497156039,0.40647324,108600.0,108590.0,0.32932077]
[1749497156237,0.15184,108600.0,108590.0,0.87694534]
[1749497156435,0.12024,108610.0,108590.0,0.81327786]
[1749497156628,0.12024,108610.0,108600.0,1.06072663]
[1749497156832,0.12024,108610.0,108600.0,0.97579226]
[1749497157843,0.21676399,108620.0,108610.0,0.1840383]
[1749497158033,0.88107405,108620.0,108610.0,0.71832302]
[1749497158436,0.30227405,108620.0,108610.0,0.71832302]
[1749497158641,0.88079405,108620.0,108610.0,0.71832302]
[1749497159140,0.88219405,108620.0,108610.0,0.71832302]
[1749497159446,1.50359771,108620.0,108610.0,0.28307211]
[1749497159633,1.50359771,108620.0,108610.0,0.22647822]
[1749497159939,1.50359771,108620.0,108610.0,0.1840383]
[1749497160140,1.50359771,108620.0,108610.0,0.22647822]
[1749497160542,0.1840383,108610.0,108600.0,0.05659389]
[1749497160745,0.56085202,108610.0,108600.0,0.24064919]
[1749497160946,0.56085202,108610.0,108600.0,0.28311804]
[1749497161643,0.92165202,108610.0,108600.0,0.28311804]
[1749497161940,0.92165202,108610.0,108600.0,0.09906274]
[1749497162339,0.92165202,108610.0,108600.0,0.22652415]
[1749497162842,0.56085202,108610.0,108600.0,0.22652415]
[1749497163039,1.07445202,108610.0,108600.0,0.22652415]
[1749497163542,0.48534836,108610.0,108600.0,0.22652415]
[1749497163842,1.06258836,108610.0,108600.0,0.2832013]
[1749497164040,1.06258836,108610.0,108600.0,0.24064919]
[1749497164246,0.90978836,108610.0,108600.0,0.32554002]
[1749497165947,0.90978836,108610.0,108600.0,0.68634002]
[1749497166147,0.14851006,108610.0,108600.0,0.85904979]
[1749497166342,0.66319006,108610.0,108600.0,0.92483637]
[1749497166536,0.20671006,108610.0,108600.0,0.95513637]
[1749497166737,0.57796,108610.0,108600.0,0.95513637]
[1749497166942,0.57756,108610.0,108600.0,0.9839942]
[1749497167145,0.1216,108610.0,108600.0,0.9839942]
[1749497168450,0.1206,108610.0,108600.0,0.9839942]
[1749497168647,0.1206,108610.0,108600.0,0.84171556]
[1749497168855,0.1206,108610.0,108600.0,1.0417345]
[1749497169164,1e-07,108610.0,108600.0,0.90651084]
[1749497169547,0.00013829,108620.0,108610.0,0.1840383]
[1749497169748,0.18415969,108620.0,108610.0,0.98052334]
[1749497169948,0.11794835,108620.0,108610.0,0.71951968]
[1749497170148,0.14874835,108620.0,108610.0,0.71951968]
[1749497170749,0.14874835,108620.0,108610.0,0.5774383]
[1749497171249,0.14874835,108620.0,108610.0,0.71951968]
[1749497171656,0.14874835,108620.0,108610.0,0.5774383]
[1749497172045,0.14874835,108620.0,108610.0,0.71951968]
[1749497172455,0.14874835,108620.0,108610.0,0.94882334]
[1749497173047,0.14874835,108620.0,108610.0,0.71951968]
[1749497173743,0.11794835,108620.0,108610.0,0.71951968]
[1749497173951,0.57266835,108620.0,108610.0,0.75251968]
[1749497175358,5e-08,108620.0,108610.0,0.98182334]
[1749497175554,0.48995806,108630.0,108620.0,0.1840219]
[1749497175855,1.06035806,108630.0,108620.0,0.83982556]
[1749497176554,0.49035806,108630.0,108620.0,0.83982556]
[1749497176755,0.98752,108630.0,108620.0,0.83982556]
[1749497177057,0.98712,108630.0,108620.0,0.83982556]
[1749497177656,0.98752,108630.0,108620.0,0.83982556]
[1749497177855,0.98736,108630.0,108620.0,0.83982556]
[1749497178062,0.98736,108630.0,108620.0,0.84182556]
[1749497178253,0.41784,108630.0,108620.0,0.84182556]
[1749497178552,0.53328,108630.0,108620.0,1.0418445]
[1749497178850,0.53328,108630.0,108620.0,1.0739445]
[1749497179257,0.53368,108630.0,108620.0,0.87392556]
[1749497179447,0.53368,108630.0,108620.0,1.07305154]
[1749497179957,0.0313,108650.0,108640.0,0.183988]
[1749497180155,0.11584,108650.0,108640.0,0.77409166]
[1749497180358,0.61492767,108660.0,108650.0,0.183971]
[1749497180546,1.1747419,108660.0,108650.0,0.33083098]
[1749497180746,0.8139419,108660.0,108650.0,0.33083098]
[1749497181146,0.8143419,108660.0,108650.0,0.33083098]
[1749497181549,0.8874224,108660.0,108650.0,0.33083098]
[1749497181746,0.8894224,108660.0,108650.0,0.33083098]
[1749497182657,1.2502224,108660.0,108650.0,0.33083098]
[1749497182853,0.8894224,108660.0,108650.0,0.33083098]
[1749497186860,0.8874224,108660.0,108650.0,0.33083098]
[1749497187058,0.8874224,108660.0,108650.0,0.33543098]
[1749497187459,0.8864224,108660.0,108650.0,0.33543098]
[1749497187662,1.11572606,108660.0,108650.0,0.30233098]
[1749497188564,0.8864224,108660.0,108650.0,0.30233098]
[1749497190062,1.2472224,108660.0,108650.0,0.188571]
[1749497190965,0.8864224,108660.0,108650.0,0.188571]
[1749497191166,1.2472224,108660.0,108650.0,0.188571]
[1749497192161,0.0014,108660.0,108650.0,0.77867466]
[1749497192365,0.1168,108660.0,108650.0,0.98227543]
[1749497192568,0.56764,108660.0,108650.0,1.01367543]
[1749497192765,0.56764,108660.0,108650.0,0.78437177]
[1749497192969,0.56764,108660.0,108650.0,1.02747543]
[1749497193362,0.0014,108660.0,108650.0,1.02747543]
[1749497193560,0.56736,108660.0,108650.0,1.02747543]
[1749497193962,0.0014,108660.0,108650.0,1.02747543]
[1749497194162,0.56712,108660.0,108650.0,1.02747543]
[1749497194966,0.56712,108660.0,108650.0,1.08440064]
[1749497195768,0.56712,108660.0,108650.0,1.08845724]
[1749497197474,0.56712,108660.0,108650.0,1.23053916]
[1749497197968,0.56712,108660.0,108650.0,1.03141318]
[1749497198165,0.7510741,108660.0,108650.0,0.80210952]
[1749497198366,0.56712,108660.0,108650.0,1.03141318]
[1749497198664,0.56588,108660.0,108650.0,1.03141318]
[1749497198860,0.0014,108660.0,108650.0,1.03141318]
[1749497199265,0.56568,108660.0,108650.0,0.80210952]
[1749497199575,0.1168,108660.0,108650.0,1.08845724]
[1749497199767,0.0014,108660.0,108650.0,1.08845724]
[1749497199965,0.1172,108660.0,108650.0,1.08845724]
[1749497200573,0.1172,108660.0,108650.0,0.86849644]
[1749497200980,0.1172,108660.0,108650.0,1.08845724]
[1749497203476,0.0014,108660.0,108650.0,1.08845724]
[1749497204477,0.0004,108660.0,108650.0,1.08845724]
[1749497206383,0.11196,108660.0,108650.0,1.08845724]
[1749497206771,0.0004,108660.0,108650.0,1.08845724]
[1749497206973,0.5603741,108700.0,108690.0,0.1839033]
[1749497206974,0.0008,108700.0,108690.0,0.1839033]
[1749497207166,0.0008,108700.0,108690.0,0.91611729]
[1749497207380,0.3582305,108710.0,108700.0,0.1838864]
[1749497207682,0.8053105,108710.0,108700.0,0.68678152]
[1749497207980,0.0326,108720.0,108710.0,0.1838696]
[1749497208184,0.14336,108720.0,108710.0,0.32596472]
[1749497208369,0.14336,108720.0,108710.0,0.68676472]
[1749497208577,0.59068,108720.0,108710.0,0.71836472]
[1749497209074,0.55872,108720.0,108710.0,0.71836472]
[1749497209274,0.7425726,108720.0,108710.0,0.68676472]
[1749497209476,0.8044726,108720.0,108710.0,0.68676472]
[1749497210181,0.62062,108720.0,108710.0,0.71786472]
[1749497210382,0.8044727,108720.0,108710.0,0.72245472]
[1749497210581,0.8044727,108720.0,108710.0,0.83575883]
[1749497210777,0.3276127,108720.0,108710.0,0.83575883]
[1749497211082,0.55848,108720.0,108710.0,0.69366371]
[1749497211281,0.55848,108720.0,108710.0,0.72416371]
[1749497211975,0.0004,108720.0,108710.0,0.95346737]
[1749497212174,0.11196,108720.0,108710.0,1.01255838]
[1749497212380,0.11196,108720.0,108710.0,0.87046326]
[1749497212580,0.11196,108720.0,108710.0,1.01255838]
[1749497213077,0.11156,108720.0,108710.0,1.01255838]
[1749497213481,0.11156,108720.0,108710.0,0.983643]
[1749497213679,0.11156,108720.0,108710.0,0.985643]
[1749497213880,0.11196,108720.0,108710.0,0.985643]
[1749497214080,0.11156,108720.0,108710.0,0.985643]
[1749497214382,0.0004,108720.0,108710.0,0.985643]
[1749497214577,0.0004,108720.0,108710.0,0.999433]
[1749497215979,0.1842526,108720.0,108710.0,0.77012934]
[1749497216184,0.1842526,108720.0,108710.0,0.70932934]
[1749497216382,0.7722926,108720.0,108710.0,0.70932934]
[1749497217084,0.8051926,108720.0,108710.0,0.70932934]
[1749497221786,0.8051926,108720.0,108710.0,0.938633]
[1749497222187,0.587,108720.0,108710.0,0.938633]
[1749497222389,0.55512,108720.0,108710.0,0.82545326]
[1749497222586,0.55552,108720.0,108710.0,1.03074838]
[1749497223594,0.55552,108720.0,108710.0,1.14387448]
[1749497223778,0.7393726,108720.0,108710.0,0.7092757]
[1749497224088,0.7691126,108720.0,108710.0,0.7092757]
[1749497224387,0.58526,108720.0,108710.0,0.93857936]
[1749497224591,0.55508,108720.0,108710.0,0.97127936]
[1749497224984,0.77918163,108730.0,108720.0,0.1838526]
[1749497225184,0.34019823,108730.0,108720.0,0.83805626]
[1749497225380,0.22867823,108730.0,108720.0,0.7218787]
[1749497225585,0.96747393,108730.0,108720.0,0.91848236]
[1749497225886,1.22727759,108730.0,108720.0,0.2969787]
[1749497226088,1.29097759,108730.0,108720.0,0.26871406]
[1749497226394,1.64772099,108730.0,108720.0,0.26871406]
[1749497226587,1.64772099,108730.0,108720.0,0.08486146]
[1749497226787,0.1838527,108720.0,108710.0,0.10341751]
[1749497226991,0.2480527,108720.0,108710.0,0.34389691]
[1749497227191,0.2480527,108720.0,108710.0,0.28728711]
[1749497227192,0.6129093,108720.0,108710.0,0.28728711]
[1749497227491,0.6129093,108720.0,108710.0,0.34390451]
[1749497227698,0.84221296,108720.0,108710.0,0.34390451]
[1749497227989,0.6129093,108720.0,108710.0,0.34390451]
[1749497228585,0.6129093,108720.0,108710.0,0.28728711]
[1749497228785,0.6129093,108720.0,108710.0,0.28928711]
[1749497229198,0.2521093,108720.0,108710.0,0.28928711]
[1749497229701,0.2525093,108720.0,108710.0,0.28928711]
[1749497230697,0.2525093,108720.0,108710.0,0.20438789]
[1749497232601,0.2525093,108720.0,108710.0,0.31751399]
[1749497233005,0.7424293,108720.0,108710.0,0.93971765]
[1749497233200,0.5585766,108720.0,108710.0,0.93971765]
[1749497233391,0.7424293,108720.0,108710.0,0.97121765]
[1749497234106,0.7420293,108720.0,108710.0,0.74191399]
[1749497234299,0.7383727,108720.0,108710.0,0.74191399]
[1749497234500,0.96767636,108720.0,108710.0,0.31751399]
[1749497234805,1.39457636,108720.0,108710.0,0.20438789]
[1749497235001,0.8044727,108720.0,108710.0,0.31751399]
[1749497235304,0.7756293,108720.0,108710.0,0.67831399]
[1749497235505,0.7752293,108720.0,108710.0,0.34951399]
[1749497235697,0.7756293,108720.0,108710.0,0.34951399]
[1749497236004,0.7756293,108720.0,108710.0,0.71031399]
[1749497236503,0.7692127,108720.0,108710.0,0.71031399]
[1749497236693,0.7692127,108720.0,108710.0,0.82649155]
[1749497236900,0.7691327,108720.0,108710.0,0.63998667]
[1749497237201,0.7691327,108720.0,108710.0,0.49789155]
[1749497237599,0.7691327,108720.0,108710.0,0.26858789]
[1749497237800,0.7691327,108720.0,108710.0,0.62938789]
[1749497238204,0.7359327,108720.0,108710.0,0.85869155]
[1749497238606,0.7668327,108720.0,108710.0,1.00078667]
[1749497239011,0.7668327,108720.0,108710.0,0.77148301]
[1749497239209,0.7668327,108720.0,108710.0,0.62938789]
[1749497239515,0.7668327,108720.0,108710.0,0.23638789]
[1749497239703,1.1593327,108720.0,108710.0,0.23638789]
[1749497240307,1.1593327,108720.0,108710.0,0.20438789]
[1749497240700,0.6076527,108720.0,108710.0,0.20438789]
[1749497240903,0.7976527,108720.0,108710.0,0.56518789]
[1749497241101,0.7659527,108720.0,108710.0,0.59798789]
[1749497241302,0.1842527,108720.0,108710.0,0.59798789]
[1749497241505,0.7348927,108720.0,108710.0,0.85789155]
[1749497241799,0.7348927,108720.0,108710.0,0.88929155]
[1749497242003,0.1842527,108720.0,108710.0,0.88929155]
[1749497242204,0.7346927,108720.0,108710.0,0.88929155]